[Event "7th Iberoamerican-ch 2019"]
[Site "Linares"]
[Date "2019.08.18"]
[Round "9.20"]
[White "Merario Alarcon, Andres"]
[Black "Domingo Nunez, Ruben"]
[Result "1-0"]
[ECO "E10"]
[WhiteElo "2392"]
[BlackElo "2345"]
[Annotator "NA"]
[PlyCount "41"]
[EventDate "2019.08.10"]
[EventType "swiss"]
[EventCountry "ESP"]
[SourceTitle "playchess.com"]
[Source "ChessBase"]
[SourceQuality "1"]
[TimeControl "5400+30"]

1. d4 {[%emt 0:00:00]} Nf6 {[%emt 0:00:00]} 2. c4 {[%emt 0:00:00]} e6 {[%emt 0:00:00]} 3. Nf3 {[%emt 0:00:00]} a6 {[%emt 0:00:12]} 4. Nc3 {[%emt 0:00:19]} d5 {[%emt 0:00:04]} 5. cxd5 {[%emt 0:00:17]} exd5 {[%emt 0:00:04]} 6. Bg5 {[%emt 0:00:07]} Be6 {[%emt 0:00:11]} 7. Bxf6 {[%emt 0:00:59]} Qxf6 {[%emt 0:08:28]} 8. Qb3 {[%emt 0:00:07]} b5 {[%emt 0:00:04]} 9. a4 {[%emt 0:00:05]} b4 {[%emt 0:00:05]} 10. Nxd5 {[%emt 0:00:03]} Qd8 {[%emt 0:00:10]} 11. e4 {[%emt 0:00:19]} c6 {[%emt 0:00:03]} 12. Qe3 {[%emt 0:00:18]} cxd5 {[%emt 0:07:12]} 13. exd5 {[%emt 0:00:09]} Qxd5 {[%emt 0:00:09]} 14. Rc1 {[%emt 0:00:07]} Be7 {[%emt 0:34:46]} 15. Bd3 {[%emt 0:00:07]} Ra7 {[%emt 0:04:50]} 16. Be4 {[%emt 0:03:37]} Qb3 {[%emt 0:24:43]} 17. Rc8+ {[%emt 0:01:45]} Bd8 {[%emt 0:00:04]} 18. Rxb8 {[%emt 0:03:32]} Re7 {[%emt 0:00:02]} 19. Bc6+ {[%emt 0:04:03]} Bd7 {[%emt 0:00:05]} 20. Bxd7+ {[%emt 0:00:05]} Kxd7 {[%emt 0:00:05]} 21. Rb7+ {[%emt 0:01:26]} 1-0

[Event "7th Iberoamerican-ch 2019"]
[Site "Linares"]
[Date "2019.08.18"]
[Round "9.21"]
[White "Mieles Palau, Daniel"]
[Black "Moral Garcia, Serafin"]
[Result "1-0"]
[ECO "A29"]
[WhiteElo "2384"]
[BlackElo "2281"]
[Annotator "NA"]
[PlyCount "123"]
[EventDate "2019.08.10"]
[EventType "swiss"]
[EventCountry "ESP"]
[SourceTitle "playchess.com"]
[Source "ChessBase"]
[SourceQuality "1"]
[TimeControl "5400+30"]

1. c4 {[%emt 0:00:00]} e5 {[%emt 0:00:00]} 2. Nc3 {[%emt 0:00:08]} Nf6 {[%emt 0:00:33]} 3. Nf3 {[%emt 0:01:33]} Nc6 {[%emt 0:00:31]} 4. g3 {[%emt 0:00:14]} Bc5 {[%emt 0:00:43]} 5. Bg2 {[%emt 0:00:09]} d6 {[%emt 0:00:45]} 6. e3 {[%emt 0:02:09]} a6 {[%emt 0:02:32]} 7. O-O {[%emt 0:00:53]} O-O {[%emt 0:00:16]} 8. d4 {[%emt 0:02:41]} exd4 {[%emt 0:01:43]} 9. exd4 {[%emt 0:03:28]} Ba7 {[%emt 0:00:15]} 10. h3 {[%emt 0:00:06]} h6 {[%emt 0:02:18]} 11. Be3 {[%emt 0:02:22]} Bd7 {[%emt 0:03:25]} 12. d5 {[%emt 0:05:26]} Ne7 {[%emt 0:02:23]} 13. Bxa7 {[%emt 0:00:42]} Rxa7 {[%emt 0:00:06]} 14. Qd4 {[%emt 0:00:05]} Ra8 {[%emt 0:00:34]} 15. b4 {[%emt 0:00:06]} b6 {[%emt 0:06:43]} 16. a3 {[%emt 0:02:49]} Bf5 {[%emt 0:04:11]} 17. Rae1 {[%emt 0:07:13]} Nd7 {[%emt 0:03:36]} 18. Nh4 {[%emt 0:06:23]} Bh7 {[%emt 0:00:29]} 19. Be4 {[%emt 0:00:12]} Bxe4 {[%emt 0:01:58]} 20. Nxe4 {[%emt 0:01:43]} f5 {[%emt 0:03:39]} 21. Nd2 {[%emt 0:00:27]} Rf6 {[%emt 0:01:26]} 22. f4 {[%emt 0:12:53]} Ng6 {[%emt 0:03:48]} 23. Nhf3 {[%emt 0:04:20]} Rf7 {[%emt 0:01:39]} 24. Re3 {[%emt 0:03:09]} Re7 {[%emt 0:05:18]} 25. Rfe1 {[%emt 0:00:20]} Rxe3 {[%emt 0:00:15]} 26. Rxe3 {[%emt 0:00:06]} Qf6 {[%emt 0:00:31]} 27. Qxf6 {[%emt 0:03:12]} Nxf6 {[%emt 0:00:11]} 28. Nd4 {[%emt 0:00:02]} Kf7 {[%emt 0:02:44]} 29. Nxf5 {[%emt 0:00:46]} a5 {[%emt 0:00:03]} 30. b5 {[%emt 0:00:23]} Ng8 {[%emt 0:03:34]} 31. Nb3 {[%emt 0:00:44]} N8e7 {[%emt 0:01:06]} 32. Nbd4 {[%emt 0:01:21]} Nxf5 {[%emt 0:00:28]} 33. Nxf5 {[%emt 0:00:02]} h5 {[%emt 0:02:21]} 34. Re4 {[%emt 0:05:42]} Kf6 {[%emt 0:02:22]} 35. Nd4 {[%emt 0:00:14]} Nf8 {[%emt 0:00:18]} 36. Kf2 {[%emt 0:00:30]} Rd8 {[%emt 0:01:08]} 37. Kf3 {[%emt 0:02:38]} g6 {[%emt 0:00:52]} 38. g4 {[%emt 0:02:37]} hxg4+ {[%emt 0:00:12]} 39. hxg4 {[%emt 0:00:09]} Rd7 {[%emt 0:07:00]} 40. g5+ {[%emt 0:02:09]} Kf7 {[%emt 0:00:20]} 41. Ne6 {[%emt 0:03:37]} Kg8 {[%emt 0:00:22]} 42. Nxf8 {[%emt 0:05:32]} Kxf8 {[%emt 0:00:01]} 43. Re6 {[%emt 0:00:01]} Kg7 {[%emt 0:07:31]} 44. f5 {[%emt 0:04:54]} gxf5 {[%emt 0:00:07]} 45. Kf4 {[%emt 0:00:10]} Rd8 {[%emt 0:00:51]} 46. g6 {[%emt 0:01:13]} Rf8 {[%emt 0:01:24]} 47. a4 {[%emt 0:13:54]} Kh6 {[%emt 0:02:32]} 48. Re7 {[%emt 0:00:10]} Kxg6 {[%emt 0:00:16]} 49. Rxc7 {[%emt 0:00:01]} Re8 {[%emt 0:00:12]} 50. Rc6 {[%emt 0:02:52]} Re4+ {[%emt 0:00:18]} 51. Kf3 {[%emt 0:00:01]} Kg5 {[%emt 0:00:19]} 52. Rxd6 {[%emt 0:00:10]} Rxc4 {[%emt 0:00:06]} 53. Rxb6 {[%emt 0:00:02]} Rxa4 {[%emt 0:00:55]} 54. Rb8 {[%emt 0:00:01]} Ra3+ {[%emt 0:04:23]} 55. Ke2 {[%emt 0:00:11]} Ra2+ {[%emt 0:00:12]} 56. Kd3 {[%emt 0:00:29]} f4 {[%emt 0:02:52]} 57. d6 {[%emt 0:00:47]} Ra3+ {[%emt 0:00:03]} 58. Kc4 {[%emt 0:00:08]} Ra4+ {[%emt 0:00:19]} 59. Kc5 {[%emt 0:00:13]} f3 {[%emt 0:00:15]} 60. d7 {[%emt 0:00:12]} f2 {[%emt 0:00:07]} 61. d8=Q+ {[%emt 0:00:08]} Kf4 {[%emt 0:00:09]} 62. Qd2+ {[%emt 0:00:05]} 1-0

[Event "7th Iberoamerican-ch 2019"]
[Site "Linares"]
[Date "2019.08.18"]
[Round "9.22"]
[White "Esquivias Quintero, Luis Manuel"]
[Black "Garriga Cazorla, Pere"]
[Result "1-0"]
[ECO "C84"]
[WhiteElo "2282"]
[BlackElo "2495"]
[Annotator "ChessBase"]
[PlyCount "85"]
[EventDate "2019.08.10"]
[EventType "swiss"]
[EventCountry "ESP"]
[SourceTitle "playchess.com"]
[Source "ChessBase"]
[SourceQuality "1"]
[TimeControl "5400+30"]

1. e4 {[%emt 0:00:55]} e5 {[%emt 0:00:00]} 2. Nf3 {[%emt 0:00:14]} Nc6 {[%emt 0:00:00]} 3. Bb5 {[%emt 0:00:07]} a6 {[%emt 0:00:00]} 4. Ba4 {[%emt 0:00:04]} Nf6 {[%emt 0:00:00]} 5. O-O {[%emt 0:00:14]} Be7 {[%emt 0:00:21]} 6. d3 {[%emt 0:00:06]} b5 {[%emt 0:01:09]} 7. Bb3 {[%emt 0:00:27]} O-O {[%emt 0:01:03]} 8. a4 {[%emt 0:00:08]} b4 {[%emt 0:00:57]} 9. a5 {[%emt 0:00:05]} d6 {[%emt 0:00:06]} 10. Nbd2 {[%emt 0:00:19]} Rb8 {[%emt 0:00:31]} 11. h3 {[%emt 0:01:22]} Be6 {[%emt 0:09:29]} 12. Nc4 {[%emt 0:00:05]} Nd7 {[%emt 0:14:57]} 13. Be3 {[%emt 0:03:04]} Bf6 {[%emt 0:00:06]} 14. Re1 {[%emt 0:07:10]} Ne7 {[%emt 0:06:56]} 15. d4 {[%emt 0:09:29]} exd4 {[%emt 0:02:37]} 16. Nxd4 {[%emt 0:00:12]} Bxd4 {[%emt 0:00:23]} 17. Bxd4 {[%emt 0:00:48]} Ng6 {[%emt 0:00:52]} 18. Be3 {[%emt 0:19:45]} Qh4 {[%emt 0:09:45]} 19. Nd2 {[%emt 0:05:26]} Qf6 {[%emt 0:06:38]} 20. Bc4 {[%emt 0:03:23]} Bxc4 {[%emt 0:06:16]} 21. Nxc4 {[%emt 0:00:32]} Rb5 {[%emt 0:00:04]} 22. b3 {[%emt 0:04:24]} Re8 {[%emt 0:02:57]} 23. Bd4 {[%emt 0:09:08]} Qg5 {[%emt 0:03:47]} 24. Qg4 {[%emt 0:03:08]} Qxg4 {[%emt 0:00:34]} 25. hxg4 Nde5 26. f3 {[%emt 0:03:01]} Nxc4 {[%emt 0:00:39]} 27. bxc4 {[%emt 0:00:02]} Rbb8 {[%emt 0:00:01]} 28. c5 {[%emt 0:04:02]} dxc5 {[%emt 0:02:42]} 29. Bxc5 {[%emt 0:00:24]} Ne5 {[%emt 0:00:06]} 30. Red1 {[%emt 0:02:46]} Rb5 {[%emt 0:00:26]} 31. Bf2 {[%emt 0:00:12]} Nc4 {[%emt 0:02:20]} 32. Rd7 {[%emt 0:03:53]} Rc8 {[%emt 0:00:48]} 33. Rad1 {[%emt 0:01:06]} Kf8 {[%emt 0:09:39]} 34. R7d5 {[%emt 0:07:31]} c6 {[%emt 0:02:48]} 35. Rd7 {[%emt 0:01:46]} Ke8 {[%emt 0:03:23]} 36. Ra7 {[%emt 0:00:28]} Rd8 {[%emt 0:00:35]} 37. Rxd8+ {[%emt 0:00:22]} Kxd8 {[%emt 0:00:01]} 38. Rxa6 {[%emt 0:00:41]} Kc7 {[%emt 0:01:12]} 39. Ra7+ {[%emt 0:00:34]} Kb8 {[%emt 0:00:00]} 40. a6 {[%emt 0:00:58]} c5 {[%emt 0:02:28]} 41. Rxf7 {[%emt 0:00:16]} g6 {[%emt 0:00:45]} 42. e5 {[%emt 0:00:57]} Rb6 {[%emt 0:07:36]} 43. a7+ {[%emt 0:02:09]} 1-0

[Event "7th Iberoamerican-ch 2019"]
[Site "Linares"]
[Date "2019.08.18"]
[Round "9.23"]
[White "Silva Rodriguez, Fernando"]
[Black "Roselli Mailhe, Bernardo"]
[Result "0-1"]
[ECO "C03"]
[WhiteElo "2253"]
[BlackElo "2461"]
[Annotator "ChessBase"]
[PlyCount "52"]
[EventDate "2019.08.10"]
[EventType "swiss"]
[EventCountry "ESP"]
[SourceTitle "playchess.com"]
[Source "ChessBase"]
[SourceQuality "1"]
[TimeControl "5400+30"]

1. e4 {[%emt 0:00:00]} e6 {[%emt 0:00:00]} 2. d4 {[%emt 0:00:00]} d5 {[%emt 0:00:00]} 3. Nd2 {[%emt 0:00:00]} a6 {[%emt 0:00:00]} 4. Ngf3 {[%emt 0:00:14]} c5 {[%emt 0:00:00]} 5. exd5 {[%emt 0:00:14]} exd5 {[%emt 0:00:00]} 6. Be2 {[%emt 0:00:14]} Nc6 {[%emt 0:00:00]} 7. O-O {[%emt 0:00:28]} Bd6 {[%emt 0:00:00]} 8. dxc5 {[%emt 0:03:16]} Bxc5 {[%emt 0:00:02]} 9. Nb3 {[%emt 0:00:24]} Bd6 {[%emt 0:00:04]} 10. h3 {[%emt 0:10:24]} Nge7 {[%emt 0:00:44]} 11. c3 {[%emt 0:02:28]} O-O {[%emt 0:00:09]} 12. Bd3 {[%emt 0:00:13]} h6 {[%emt 0:03:48]} 13. Re1 {[%emt 0:02:43]} Re8 {[%emt 0:00:14]} 14. Bc2 {[%emt 0:01:58]} Bc7 {[%emt 0:02:25]} 15. Be3 {[%emt 0:04:39]} Bf5 {[%emt 0:01:28]} 16. Bc5 {[%emt 0:01:39]} Qd7 {[%emt 0:00:51]} 17. Nbd4 {[%emt 0:02:53]} Bxc2 {[%emt 0:01:44]} 18. Qxc2 {[%emt 0:00:34]} b6 {[%emt 0:02:34]} 19. Ba3 {[%emt 0:00:44]} Ng6 {[%emt 0:08:34]} 20. Nxc6 {[%emt 0:11:17]} Qxc6 {[%emt 0:00:26]} 21. Qf5 {[%emt 0:06:21]} Re4 {[%emt 0:06:31]} 22. Rad1 {[%emt 0:09:33]} Rxe1+ {[%emt 0:08:39]} 23. Rxe1 {[%emt 0:01:56]} Rd8 {[%emt 0:00:12]} 24. h4 {[%emt 0:05:09]} Re8 {[%emt 0:06:47]} 25. Rd1 {[%emt 0:03:41]} Qe6 {[%emt 0:02:18]} 26. Nd4 {[%emt 0:03:23]} Qe1+ {[%emt 0:00:26]} 0-1

[Event "7th Iberoamerican-ch 2019"]
[Site "Linares"]
[Date "2019.08.18"]
[Round "9.24"]
[White "Cori T., Deysi"]
[Black "Lacayo, Rene"]
[Result "1-0"]
[ECO "D30"]
[WhiteElo "2400"]
[BlackElo "2274"]
[Annotator "NA"]
[PlyCount "79"]
[EventDate "2019.08.10"]
[EventType "swiss"]
[EventCountry "ESP"]
[SourceTitle "playchess.com"]
[Source "ChessBase"]
[SourceQuality "1"]
[TimeControl "5400+30"]

1. d4 {[%emt 0:06:27]} Nf6 {[%emt 0:00:00]} 2. Nf3 {[%emt 0:00:17]} e6 {[%emt 0:00:09]} 3. e3 {[%emt 0:00:06]} d5 {[%emt 0:01:14]} 4. c4 {[%emt 0:00:07]} c6 {[%emt 0:00:30]} 5. Nbd2 {[%emt 0:00:14]} Nbd7 {[%emt 0:00:12]} 6. Bd3 {[%emt 0:00:07]} Be7 {[%emt 0:00:22]} 7. O-O {[%emt 0:00:18]} O-O {[%emt 0:00:01]} 8. Qe2 {[%emt 0:01:35]} b6 {[%emt 0:04:50]} 9. Rd1 {[%emt 0:03:49]} Bb7 {[%emt 0:00:26]} 10. b3 {[%emt 0:04:21]} c5 {[%emt 0:03:31]} 11. Bb2 {[%emt 0:03:30]} cxd4 {[%emt 0:04:25]} 12. exd4 {[%emt 0:09:08]} Rc8 {[%emt 0:07:35]} 13. Rac1 {[%emt 0:04:39]} Bd6 {[%emt 0:02:50]} 14. Ne5 {[%emt 0:01:57]} Qe7 {[%emt 0:00:18]} 15. Ndf3 {[%emt 0:03:20]} Ne4 {[%emt 0:19:13]} 16. Nxd7 {[%emt 0:13:13]} Qxd7 {[%emt 0:03:33]} 17. Ne5 {[%emt 0:00:12]} Qe7 {[%emt 0:00:25]} 18. cxd5 {[%emt 0:01:55]} exd5 {[%emt 0:00:15]} 19. f3 {[%emt 0:00:08]} Nf6 {[%emt 0:01:24]} 20. Ba6 {[%emt 0:25:25]} Rfe8 {[%emt 0:06:54]} 21. g3 {[%emt 0:05:02]} h6 {[%emt 0:04:53]} 22. Kg2 {[%emt 0:00:50]} Nh7 {[%emt 0:05:33]} 23. Bxb7 {[%emt 0:03:08]} Qxb7 {[%emt 0:00:39]} 24. Qb5 {[%emt 0:00:12]} Nf6 {[%emt 0:02:36]} 25. h4 {[%emt 0:04:39]} Nh5 {[%emt 0:08:49]} 26. Rxc8 {[%emt 0:00:42]} Rxc8 {[%emt 0:00:15]} 27. Rc1 {[%emt 0:00:08]} Nf6 {[%emt 0:06:05]} 28. Qd3 {[%emt 0:04:18]} Rxc1 {[%emt 0:01:01]} 29. Bxc1 {[%emt 0:00:00]} Qc7 {[%emt 0:03:06]} 30. Bb2 {[%emt 0:00:01]} g6 {[%emt 0:03:03]} 31. Qd2 {[%emt 0:01:23]} h5 {[%emt 0:01:44]} 32. Qd3 {[%emt 0:01:46]} Kg7 {[%emt 0:00:31]} 33. Bc3 {[%emt 0:01:15]} Ng8 {[%emt 0:04:06]} 34. Bd2 {[%emt 0:02:07]} Ne7 {[%emt 0:00:49]} 35. Qc3 {[%emt 0:00:35]} Qb7 {[%emt 0:02:23]} 36. Bh6+ {[%emt 0:00:34]} Kxh6 {[%emt 0:03:23]} 37. Nxf7+ {[%emt 0:00:04]} Kg7 {[%emt 0:00:02]} 38. Nxd6 {[%emt 0:00:05]} Qd7 {[%emt 0:00:04]} 39. Qc7 {[%emt 0:00:32]} Qe6 {[%emt 0:00:21]} 40. Kf2 {[%emt 0:00:18]} 1-0

[Event "7th Iberoamerican-ch 2019"]
[Site "Linares"]
[Date "2019.08.18"]
[Round "9.25"]
[White "Forgas Moreno, Yaniela"]
[Black "Valenzuela Gomez, Fernando"]
[Result "1/2-1/2"]
[ECO "B23"]
[WhiteElo "2276"]
[BlackElo "2388"]
[Annotator "NA"]
[PlyCount "88"]
[EventDate "2019.08.10"]
[EventType "swiss"]
[EventCountry "ESP"]
[SourceTitle "playchess.com"]
[Source "ChessBase"]
[SourceQuality "1"]
[TimeControl "5400+30"]

1. e4 {[%emt 0:00:00]} c5 {[%emt 0:00:00]} 2. Nc3 {[%emt 0:00:00]} a6 {[%emt 0:00:00]} 3. g3 {[%emt 0:00:00]} d6 {[%emt 0:01:00]} 4. Bg2 {[%emt 0:00:13]} e6 {[%emt 0:01:04]} 5. d3 {[%emt 0:00:22]} Nc6 {[%emt 0:00:36]} 6. f4 {[%emt 0:01:09]} Nf6 {[%emt 0:01:37]} 7. Nf3 {[%emt 0:03:39]} Be7 {[%emt 0:00:10]} 8. O-O {[%emt 0:00:43]} Qc7 {[%emt 0:01:24]} 9. h3 {[%emt 0:04:03]} b5 {[%emt 0:00:44]} 10. Ne2 {[%emt 0:01:08]} Bb7 {[%emt 0:03:46]} 11. c3 {[%emt 0:01:56]} c4 {[%emt 0:01:34]} 12. dxc4 {[%emt 0:09:19]} Nxe4 {[%emt 0:02:42]} 13. cxb5 {[%emt 0:01:04]} axb5 {[%emt 0:00:11]} 14. Nfd4 {[%emt 0:02:36]} Nxd4 {[%emt 0:00:28]} 15. Qxd4 {[%emt 0:00:50]} Nf6 {[%emt 0:01:15]} 16. Be3 {[%emt 0:02:35]} Bxg2 {[%emt 0:00:36]} 17. Kxg2 {[%emt 0:00:04]} O-O {[%emt 0:00:17]} 18. Kh2 {[%emt 0:00:52]} Nd5 {[%emt 0:04:53]} 19. a3 {[%emt 0:04:17]} Bf6 {[%emt 0:07:40]} 20. Qd3 {[%emt 0:00:14]} Nxe3 {[%emt 0:04:58]} 21. Qxe3 {[%emt 0:00:05]} Ra4 {[%emt 0:01:27]} 22. Rad1 {[%emt 0:01:01]} d5 {[%emt 0:00:45]} 23. Nd4 {[%emt 0:02:02]} Rc8 {[%emt 0:01:58]} 24. Rf2 {[%emt 0:04:38]} Qb6 {[%emt 0:01:40]} 25. Rfd2 {[%emt 0:01:12]} Rac4 {[%emt 0:00:34]} 26. h4 {[%emt 0:07:47]} Qb8 {[%emt 0:01:34]} 27. Kg2 {[%emt 0:00:54]} Re8 {[%emt 0:00:56]} 28. Qf3 {[%emt 0:01:09]} Rc7 {[%emt 0:02:43]} 29. Re1 {[%emt 0:01:51]} Rc4 {[%emt 0:00:37]} 30. Red1 {[%emt 0:00:47]} Bxd4 {[%emt 0:00:57]} 31. Rxd4 {[%emt 0:00:07]} Rec8 {[%emt 0:00:36]} 32. Qe2 {[%emt 0:08:13]} Qd6 {[%emt 0:00:44]} 33. Kf3 {[%emt 0:05:37]} Rd8 {[%emt 0:01:37]} 34. Kg2 {[%emt 0:01:58]} Rc5 {[%emt 0:01:33]} 35. Kh2 {[%emt 0:00:55]} f6 {[%emt 0:01:03]} 36. Re1 {[%emt 0:01:49]} Re8 {[%emt 0:00:10]} 37. Qh5 {[%emt 0:03:25]} Re7 {[%emt 0:01:51]} 38. Qf3 {[%emt 0:01:30]} Rc4 {[%emt 0:01:06]} 39. h5 {[%emt 0:02:46]} Rxd4 {[%emt 0:00:35]} 40. cxd4 {[%emt 0:00:04]} Rc7 {[%emt 0:01:05]} 41. Qe2 {[%emt 0:01:53]} Rc4 {[%emt 0:01:21]} 42. Qxe6+ {[%emt 0:03:11]} Qxe6 {[%emt 0:01:28]} 43. Rxe6 {[%emt 0:00:05]} Rxd4 {[%emt 0:00:31]} 44. Rd6 {[%emt 0:01:33]} Rd2+ {[%emt 0:04:15]} 1/2-1/2

[Event "7th Iberoamerican-ch 2019"]
[Site "Linares"]
[Date "2019.08.18"]
[Round "9.26"]
[White "Gavarrete, Nahun"]
[Black "Calzetta Ruiz, Monica"]
[Result "0-1"]
[ECO "B35"]
[WhiteElo "2349"]
[BlackElo "2257"]
[Annotator "NA"]
[PlyCount "88"]
[EventDate "2019.08.10"]
[EventType "swiss"]
[EventCountry "ESP"]
[SourceTitle "playchess.com"]
[Source "ChessBase"]
[SourceQuality "1"]
[TimeControl "5400+30"]

1. e4 {[%emt 0:00:00]} c5 {[%emt 0:00:00]} 2. Nf3 {[%emt 0:00:00]} Nc6 {[%emt 0:00:00]} 3. d4 {[%emt 0:00:00]} cxd4 {[%emt 0:00:00]} 4. Nxd4 {[%emt 0:00:02]} g6 {[%emt 0:00:02]} 5. Nc3 {[%emt 0:02:21]} Bg7 {[%emt 0:00:14]} 6. Be3 {[%emt 0:00:04]} Nf6 {[%emt 0:00:31]} 7. Bc4 {[%emt 0:00:52]} O-O {[%emt 0:00:32]} 8. Bb3 {[%emt 0:00:03]} d6 {[%emt 0:00:49]} 9. f3 {[%emt 0:00:24]} Bd7 {[%emt 0:03:04]} 10. Qd2 {[%emt 0:00:03]} Na5 {[%emt 0:00:11]} 11. O-O-O {[%emt 0:03:49]} Nxb3+ {[%emt 0:07:01]} 12. Nxb3 {[%emt 0:00:51]} b5 {[%emt 0:00:38]} 13. Bg5 {[%emt 0:02:19]} b4 {[%emt 0:11:03]} 14. Nd5 {[%emt 0:00:53]} Nxd5 {[%emt 0:02:02]} 15. exd5 {[%emt 0:00:09]} a5 {[%emt 0:00:33]} 16. Rhe1 {[%emt 0:00:16]} Re8 {[%emt 0:03:20]} 17. Nd4 {[%emt 0:00:10]} Rc8 {[%emt 0:01:28]} 18. Re4 {[%emt 0:18:49]} Rc5 {[%emt 0:04:56]} 19. Nb3 {[%emt 0:03:15]} Rb5 {[%emt 0:25:03]} 20. Kb1 {[%emt 0:00:13]} Bf5 {[%emt 0:02:38]} 21. Qe2 {[%emt 0:06:52]} Rb7 {[%emt 0:01:55]} 22. Rc4 {[%emt 0:17:25]} a4 {[%emt 0:00:10]} 23. g4 {[%emt 0:00:06]} axb3 {[%emt 0:06:37]} 24. gxf5 {[%emt 0:00:04]} bxa2+ {[%emt 0:00:07]} 25. Ka1 {[%emt 0:00:09]} Qa8 {[%emt 0:02:37]} 26. Bc1 {[%emt 0:06:48]} Rc8 {[%emt 0:01:10]} 27. fxg6 {[%emt 0:00:53]} hxg6 {[%emt 0:00:04]} 28. h4 {[%emt 0:01:24]} Rbc7 {[%emt 0:00:41]} 29. Rxc7 {[%emt 0:00:08]} Rxc7 {[%emt 0:00:04]} 30. h5 {[%emt 0:00:05]} Qc8 {[%emt 0:06:19]} 31. Rd2 {[%emt 0:02:52]} gxh5 {[%emt 0:00:41]} 32. Qd3 {[%emt 0:01:59]} Qh3 {[%emt 0:06:49]} 33. Kxa2 {[%emt 0:00:55]} h4 {[%emt 0:02:55]} 34. Kb3 {[%emt 0:00:21]} Qg3 {[%emt 0:00:34]} 35. Rd1 {[%emt 0:05:58]} h3 {[%emt 0:00:12]} 36. f4 {[%emt 0:00:15]} Qg2 {[%emt 0:03:08]} 37. Rd2 {[%emt 0:00:35]} Qg1 {[%emt 0:00:49]} 38. Rd1 {[%emt 0:01:05]} h2 {[%emt 0:00:05]} 39. Be3 {[%emt 0:01:14]} Qg2 {[%emt 0:00:32]} 40. Bb6 {[%emt 0:04:19]} Rb7 {[%emt 0:02:20]} 41. Qa6 {[%emt 0:01:31]} Rxb6 {[%emt 0:00:17]} 42. Qxb6 {[%emt 0:00:27]} h1=Q {[%emt 0:00:07]} 43. Rxh1 {[%emt 0:01:41]} Qxd5+ {[%emt 0:00:04]} 44. Kxb4 {[%emt 0:01:26]} Qxh1 {[%emt 0:00:02]} 0-1

[Event "7th Iberoamerican-ch 2019"]
[Site "Linares"]
[Date "2019.08.18"]
[Round "9.27"]
[White "Blanco Acevedo, Cristobal Jose"]
[Black "Diaz Mino, Pablo"]
[Result "1-0"]
[ECO "E73"]
[WhiteElo "2342"]
[BlackElo "2239"]
[Annotator "NA"]
[PlyCount "95"]
[EventDate "2019.08.10"]
[EventType "swiss"]
[EventCountry "ESP"]
[SourceTitle "playchess.com"]
[Source "ChessBase"]
[SourceQuality "1"]
[TimeControl "5400+30"]

1. c4 {[%emt 0:06:40]} Nf6 {[%emt 0:00:00]} 2. Nc3 {[%emt 0:00:05]} g6 {[%emt 0:01:57]} 3. e4 {[%emt 0:00:29]} d6 {[%emt 0:00:06]} 4. d4 {[%emt 0:00:21]} Bg7 {[%emt 0:00:08]} 5. Be2 {[%emt 0:00:22]} O-O {[%emt 0:03:45]} 6. Be3 {[%emt 0:00:06]} Nbd7 {[%emt 0:07:47]} 7. g4 {[%emt 0:00:41]} e5 {[%emt 0:14:21]} 8. d5 {[%emt 0:00:35]} Nc5 {[%emt 0:03:16]} 9. f3 {[%emt 0:00:05]} a5 {[%emt 0:00:31]} 10. Qd2 {[%emt 0:01:28]} Bd7 {[%emt 0:02:55]} 11. h4 {[%emt 0:02:04]} h5 {[%emt 0:01:57]} 12. Bg5 {[%emt 0:00:42]} Kh7 {[%emt 0:08:30]} 13. gxh5 {[%emt 0:01:13]} gxh5 {[%emt 0:01:15]} 14. O-O-O {[%emt 0:03:00]} Qe8 {[%emt 0:11:09]} 15. Nh3 {[%emt 0:08:10]} Ng8 {[%emt 0:05:23]} 16. Rdg1 {[%emt 0:04:52]} f6 {[%emt 0:06:24]} 17. Be3 {[%emt 0:00:56]} Bh6 {[%emt 0:13:32]} 18. Ng5+ {[%emt 0:00:53]} Kh8 {[%emt 0:00:32]} 19. f4 {[%emt 0:01:58]} exf4 {[%emt 0:11:05]} 20. Bd4 {[%emt 0:00:11]} Bg7 {[%emt 0:01:45]} 21. Qxf4 {[%emt 0:01:05]} Qg6 {[%emt 0:02:31]} 22. Nh3 {[%emt 0:03:20]} Qh7 {[%emt 0:00:32]} 23. Kb1 {[%emt 0:03:17]} Rae8 {[%emt 0:00:12]} 24. Nf2 {[%emt 0:01:35]} Re7 {[%emt 0:01:22]} 25. Rh2 {[%emt 0:02:54]} Be8 {[%emt 0:00:09]} 26. Rhg2 {[%emt 0:00:13]} Nd7 {[%emt 0:00:17]} 27. Qg3 {[%emt 0:02:50]} Ne5 {[%emt 0:00:28]} 28. c5 {[%emt 0:01:47]} Nh6 {[%emt 0:01:31]} 29. Ka1 {[%emt 0:02:07]} Rg8 {[%emt 0:00:21]} 30. cxd6 {[%emt 0:01:34]} cxd6 {[%emt 0:00:01]} 31. Qf4 {[%emt 0:01:34]} Rf8 {[%emt 0:00:40]} 32. Bb5 {[%emt 0:03:25]} Nhg4 {[%emt 0:00:31]} 33. Bxe8 {[%emt 0:02:35]} Rfxe8 {[%emt 0:00:10]} 34. Nxg4 {[%emt 0:00:18]} Nxg4 {[%emt 0:01:25]} 35. Qxd6 {[%emt 0:00:07]} b5 {[%emt 0:00:18]} 36. b4 {[%emt 0:06:07]} axb4 {[%emt 0:00:13]} 37. Qxb4 {[%emt 0:00:08]} Rxe4 {[%emt 0:00:47]} 38. Qxb5 {[%emt 0:03:40]} Re1+ {[%emt 0:00:31]} 39. Kb2 {[%emt 0:01:06]} Qg8 {[%emt 0:00:41]} 40. Rxe1 {[%emt 0:00:26]} Rxe1 {[%emt 0:00:01]} 41. Re2 {[%emt 0:00:17]} Rxe2+ {[%emt 0:00:38]} 42. Qxe2 {[%emt 0:00:28]} Qb8+ {[%emt 0:00:25]} 43. Kc2 {[%emt 0:00:16]} Qc8 {[%emt 0:00:56]} 44. Qe7 {[%emt 0:00:46]} Qf5+ {[%emt 0:00:22]} 45. Kb3 {[%emt 0:00:46]} Nh6 {[%emt 0:00:39]} 46. Qe8+ {[%emt 0:01:05]} Kh7 {[%emt 0:00:24]} 47. d6 {[%emt 0:00:42]} Qa5 {[%emt 0:00:34]} 48. d7 1-0